bitfinex/quotes_ETHUSD_20250920
["timestamp","ask_amount","ask_price","bid_price","bid_amount"]
[1758343902071,7.91474075,4480.8,4480.7,5.633]
[1758343902472,7.70531644,4480.8,4480.7,5.633]
[1758343903838,7.70532958,4480.8,4480.7,5.633]
[1758343911878,7.70528048,4480.8,4480.7,5.633]
[1758343912376,3.44937759,4480.8,4480.7,5.8738]
[1758343913076,3.44937759,4480.8,4480.7,5.633]
[1758343913280,0.12757759,4480.8,4480.7,8.89207813]
[1758343914697,0.12756754,4480.8,4480.7,8.89207813]
[1758343917401,0.12756754,4480.8,4480.7,9.68407813]
[1758343917699,0.002,4480.8,4480.7,9.68407813]
[1758343922873,0.002,4480.8,4480.7,9.44327813]
[1758343923075,0.002,4480.8,4480.7,9.69327813]
[1758343928305,0.002,4480.8,4480.7,9.77327813]
[1758343954473,0.002,4480.8,4480.7,9.77047813]
[1758343962214,0.002,4480.8,4480.7,9.52227813]
[1758343965235,0.002,4480.8,4480.7,9.76707813]
[1758343968219,0.002,4480.8,4480.7,6.06507813]
[1758343968412,0.002,4480.8,4480.7,9.76607813]
[1758343968795,0.002,4480.8,4480.7,9.52127813]
[1758343970247,0.002,4480.8,4480.7,9.76607813]
[1758343972347,0.002,4480.8,4480.7,6.06507813]
[1758343972558,0.002,4480.8,4480.7,9.52127813]
[1758343982313,0.002,4480.8,4480.7,8.73479413]
[1758343984411,0.002,4480.8,4480.7,8.89569413]
[1758343986623,0.002,4480.8,4480.7,9.14219413]
[1758343992717,0.002,4480.8,4480.7,8.89569413]
[1758343994918,0.002,4480.8,4480.7,9.12489413]
[1758343996293,0.002,4480.8,4480.7,10.14972023]
[1758343997614,1e-08,4480.9,4480.8,3.02374433]
[1758343997824,1e-08,4480.9,4480.8,3.25294433]
[1758343999424,1e-08,4481.7,4481.6,3.02334594]
[1758343999624,1e-08,4481.7,4481.6,8.75665939]
[1758343999927,1e-08,4481.7,4481.6,8.96354594]
[1758344000107,1e-08,4481.7,4481.6,9.12444594]
[1758344005751,1e-08,4481.7,4481.6,13.37644421]
[1758344005913,1e-08,4481.7,4481.6,14.93723057]
[1758344006248,1e-08,4481.7,4481.6,10.6852323]
[1758344008658,1e-08,4481.7,4481.6,11.13386758]
[1758344010724,1e-08,4481.7,4481.6,10.90466758]
[1758344011129,1e-08,4481.7,4481.6,11.13386758]
[1758344014896,1e-08,4481.7,4481.6,10.90466758]
[1758344017498,1e-08,4481.7,4481.6,11.13386758]
[1758344017966,1e-08,4481.7,4481.6,10.90466758]
[1758344023782,1e-08,4481.7,4481.6,11.14626758]
[1758344025180,1e-08,4481.7,4481.6,10.90466758]
[1758344027893,1e-08,4481.7,4481.6,10.74376758]
[1758344028696,1e-08,4481.7,4481.6,10.98536758]
[1758344029118,1e-08,4481.7,4481.6,10.98636758]
[1758344035830,1e-08,4481.7,4481.6,11.07577773]
[1758344036826,1e-08,4481.7,4481.6,15.327776]
[1758344038426,1e-08,4481.9,4481.8,3.02324637]
[1758344038603,1e-08,4481.9,4481.8,8.92152281]
[1758344038804,1e-08,4481.9,4481.8,9.16312281]
[1758344040831,1e-08,4481.9,4481.8,9.24312281]
[1758344045248,1e-08,4481.9,4481.8,9.00152281]
[1758344045851,1e-08,4481.9,4481.8,9.22752281]
[1758344047620,1e-08,4481.9,4481.8,9.00152281]
[1758344048223,0.00200001,4481.9,4481.8,9.00152281]
[1758344049750,0.00200001,4481.9,4481.8,5.30252281]
[1758344050048,0.00200001,4481.9,4481.8,9.00152281]
[1758344050752,0.00200001,4481.9,4481.8,9.22752281]
[1758344051850,0.00200001,4481.9,4481.8,9.00152281]
[1758344052366,0.00200001,4481.9,4481.8,9.22752281]
[1758344053078,0.00200001,4481.9,4481.8,9.00152281]
[1758344056052,0.00200001,4481.9,4481.8,5.30252281]
[1758344056257,0.00200001,4481.9,4481.8,9.00152281]
[1758344057777,0.00200001,4481.9,4481.8,5.30252281]
[1758344057984,0.00200001,4481.9,4481.8,9.00152281]
[1758344058371,0.16290001,4481.9,4481.8,9.00152281]
[1758344059564,0.16290001,4481.9,4481.8,5.30252281]
[1758344059760,0.00200001,4481.9,4481.8,9.00152281]
[1758344060195,0.00200001,4481.9,4481.8,5.30252281]
[1758344060391,0.00200001,4481.9,4481.8,9.00152281]
[1758344061774,0.00200001,4481.9,4481.8,5.30252281]
[1758344061977,0.00200001,4481.9,4481.8,9.00152281]
[1758344062499,0.00200001,4481.9,4481.8,9.22722281]
[1758344062699,0.00200001,4481.9,4481.8,9.00152281]
[1758344063791,0.00200001,4481.9,4481.8,9.22722281]
[1758344064132,0.00200001,4481.9,4481.8,9.00152281]
[1758344064401,0.00200001,4481.9,4481.8,9.22722281]
[1758344064597,0.00200001,4481.9,4481.8,9.00152281]
[1758344064789,0.00200001,4481.9,4481.8,9.22722281]
[1758344066700,0.00200001,4481.9,4481.8,17.48779986]
[1758344066919,0.00200001,4481.9,4481.8,12.22722281]
[1758344067794,0.00200001,4481.9,4481.8,12.22822281]
[1758344080713,0.00200001,4481.9,4481.8,12.22722281]
[1758344082349,0.00200001,4481.9,4481.8,8.52922281]
[1758344082681,0.00200001,4481.9,4481.8,12.22722281]
[1758344084278,0.00200001,4481.9,4481.8,8.52922281]
[1758344084454,0.00200001,4481.9,4481.8,12.22722281]
[1758344086684,0.00200001,4481.9,4481.8,12.00152281]
[1758344086845,0.00200001,4481.9,4481.8,12.23172281]
[1758344087276,0.00200001,4481.9,4481.8,8.53372281]
[1758344087445,0.00200001,4481.9,4481.8,12.23172281]
[1758344087645,0.00200001,4481.9,4481.8,12.00152281]
[1758344087846,0.00200001,4481.9,4481.8,7.51152281]
[1758344088051,0.16290001,4481.9,4481.8,2.31224637]
[1758344088253,0.16290001,4481.9,4481.8,6.01024637]
[1758344088546,0.16290001,4481.9,4481.8,6.80224637]
[1758344089681,0.16290001,4481.9,4481.8,3.10424637]
[1758344089881,0.16290001,4481.9,4481.8,6.80224637]
[1758344090898,0.00200001,4481.9,4481.8,6.80224637]
[1758344091081,0.16290001,4481.9,4481.8,6.80224637]
[1758344092497,0.16290001,4481.9,4481.8,3.10424637]
[1758344092713,0.16290001,4481.9,4481.8,6.80224637]
[1758344094617,0.16290001,4481.9,4481.8,3.10424637]
[1758344094921,0.16290001,4481.9,4481.8,6.80224637]
[1758344097325,0.00200001,4481.9,4481.8,6.80224637]
[1758344100353,0.16290001,4481.9,4481.8,6.80224637]
[1758344100532,0.16290001,4481.9,4481.8,3.10424637]
[1758344100720,0.16290001,4481.9,4481.8,6.80224637]
[1758344103340,0.16290001,4481.9,4481.8,0.081]
[1758344103700,0.16290001,4481.9,4481.8,3.779]
[1758344103905,0.16290001,4481.9,4481.8,6.01024637]
[1758344104118,0.16290001,4481.9,4481.8,3.779]
[1758344105598,0.16290001,4481.9,4481.8,6.01024637]
[1758344106034,0.16290001,4481.9,4481.8,0.081]
[1758344106345,0.16290001,4481.9,4481.8,3.783]
[1758344110854,0.00200001,4481.9,4481.8,6.01424637]
[1758344111350,0.16290001,4481.9,4481.8,6.01424637]
[1758344112008,0.00200001,4481.9,4481.8,6.01424637]
[1758344114497,0.00200001,4481.9,4481.8,3.783]
[1758344114714,0.00200001,4481.9,4481.8,6.01424637]
[1758344117585,0.16290001,4481.9,4481.8,3.783]
[1758344117898,0.16290001,4481.9,4481.8,3.782]
[1758344118607,0.16290001,4481.9,4481.8,6.01324637]
[1758344119177,0.00200001,4481.9,4481.8,0.081]
[1758344119489,0.16290001,4481.9,4481.8,5.712]
[1758344119694,0.16290001,4481.9,4481.8,2.01]
[1758344119994,0.28799667,4481.9,4481.8,2.01]
[1758344120195,0.28799667,4481.9,4481.8,5.712]
[1758344122739,0.28799667,4481.9,4481.8,2.01]
[1758344122885,5.51919326,4481.9,4481.8,2.01]
[1758344123385,3.28799667,4481.9,4481.8,5.712]
[1758344125523,3.12709667,4481.9,4481.8,5.712]
[1758344125818,3.00200001,4481.9,4481.8,5.712]
[1758344126028,3.12727606,4481.9,4481.8,5.712]
[1758344126322,3.00200001,4481.9,4481.8,5.712]
[1758344128655,3.12736887,4481.9,4481.8,5.712]
[1758344128849,3.12736887,4481.9,4481.8,2.01]
[1758344129054,3.12736887,4481.9,4481.8,5.711]
[1758344129219,3.00200001,4481.9,4481.8,5.711]
[1758344130251,3.16290001,4481.9,4481.8,5.711]
[1758344130627,3.49737241,4481.9,4481.8,5.711]
[1758344131027,3.16290001,4481.9,4481.8,5.711]
[1758344132034,3.49741465,4481.9,4481.8,5.711]
[1758344132753,3.33651465,4481.9,4481.8,5.711]
[1758344132935,3.33651465,4481.9,4481.8,5.9483]
[1758344133466,3.33651465,4481.9,4481.8,2.2473]
[1758344133755,3.33651465,4481.9,4481.8,5.9483]
[1758344137145,3.127443,4481.9,4481.8,5.711]
[1758344137474,3.3365399,4481.9,4481.8,5.711]
[1758344140074,3.3365399,4481.9,4481.8,5.71]
[1758344140239,3.4974399,4481.9,4481.8,5.71]
[1758344141063,3.3365399,4481.9,4481.8,5.71]
[1758344142590,3.3365399,4481.9,4481.8,2.01]
[1758344142795,3.3365399,4481.9,4481.8,5.71]
[1758344145189,3.3365399,4481.9,4481.8,2.01]
[1758344145374,3.4974399,4481.9,4481.8,5.71]
[1758344145688,3.3365399,4481.9,4481.8,5.71]
[1758344148706,5.56773649,4481.9,4481.8,5.71]
[1758344149567,3.3365399,4481.9,4481.8,5.71]
[1758344151714,5.56773649,4481.9,4481.8,2.01]
[1758344151868,5.56773649,4481.9,4481.8,5.71]
[1758344156388,5.56773649,4481.9,4481.8,5.713]
[1758344162094,3.3365399,4481.9,4481.8,5.9532]
[1758344164373,5.56773649,4481.9,4481.8,5.713]
[1758344164694,3.3365399,4481.9,4481.8,5.713]
[1758344166196,3.3365399,4481.9,4481.8,5.9532]
[1758344172881,3.3365399,4481.9,4481.8,5.713]
[1758344173814,3.3365399,4481.9,4481.8,5.9494]
[1758344176696,3.3365399,4481.9,4481.8,5.713]
[1758344177683,3.3365399,4481.9,4481.8,3.784]
[1758344179912,3.3365399,4481.9,4481.8,4.0204]
[1758344184901,3.3365399,4481.9,4481.8,3.784]
[1758344185812,5.56773649,4481.9,4481.8,3.784]
[1758344186905,5.56816289,4481.9,4481.8,3.784]
[1758344187434,5.56816289,4481.9,4481.8,4.0204]
[1758344187435,3.3369663,4481.9,4481.8,4.0204]
[1758344191931,3.3369663,4481.9,4481.8,3.784]
[1758344192139,3.3369663,4481.9,4481.8,4.0204]
[1758344194210,3.33700445,4481.9,4481.8,4.0204]
[1758344215683,3.33700445,4481.9,4481.8,4.03]
[1758344216645,3.33700445,4481.9,4481.8,6.26124637]
[1758344217644,3.33700445,4481.9,4481.8,4.03]
[1758344218283,3.12761237,4481.9,4481.8,4.03]
[1758344218877,3.33694431,4481.9,4481.8,4.03]
[1758344219182,3.33693119,4481.9,4481.8,4.03]
[1758344221715,3.33690511,4481.9,4481.8,4.03]
[1758344222819,3.12758942,4481.9,4481.8,4.03]
[1758344223004,3.33689907,4481.9,4481.8,4.03]
[1758344226013,3.33689907,4481.9,4481.8,0.081]
[1758344226321,3.3368851,4481.9,4481.8,3.781]
[1758344229716,3.33687219,4481.9,4481.8,4.0146]
[1758344232425,3.33687219,4481.9,4481.8,0.3146]
[1758344232599,3.33687219,4481.9,4481.8,4.0146]
[1758344233321,3.33687219,4481.9,4481.8,0.3146]
[1758344233522,3.33687219,4481.9,4481.8,4.0146]
[1758344241006,3.33687219,4481.9,4481.8,0.081]
[1758344241212,3.33687219,4481.9,4481.8,3.78]
[1758344242636,3.25687219,4481.9,4481.8,3.7]
[1758344243335,3.25887219,4481.9,4481.8,3.7]
[1758344244132,3.25887219,4481.9,4481.8,3.9454]
[1758344245833,3.25899897,4481.9,4481.8,3.9454]
[1758344247815,3.04962462,4481.9,4481.8,3.9454]
[1758344249543,3.258988,4481.9,4481.8,3.7]
[1758344252291,2.92400001,4481.9,4481.8,3.7]
[1758344252628,3.04962333,4481.9,4481.8,3.7]
[1758344253067,2.92400001,4481.9,4481.8,3.7]
[1758344253276,3.13337138,4481.9,4481.8,3.7]
[1758344253682,3.13337138,4481.9,4481.8,0.001]
[1758344253824,3.04962283,4481.9,4481.8,3.7]
[1758344254030,2.92400001,4481.9,4481.8,3.7]
[1758344254231,3.25899281,4481.9,4481.8,3.7]
[1758344254536,2.92400001,4481.9,4481.8,5.63]
[1758344255053,3.04962231,4481.9,4481.8,5.63]
[1758344255742,3.1333696,4481.9,4481.8,5.63]
[1758344256066,2.92400001,4481.9,4481.8,5.63]
[1758344257062,3.25898985,4481.9,4481.8,5.63]
[1758344257265,3.13336866,4481.9,4481.8,5.63]
[1758344257463,3.25898977,4481.9,4481.8,5.63]
[1758344259964,3.25898977,4481.9,4481.8,1.931]
[1758344260268,3.25898977,4481.9,4481.8,5.63]
[1758344271278,3.25898977,4481.9,4481.8,1.931]
[1758344271486,3.25898977,4481.9,4481.8,5.63]
[1758344274177,3.25898977,4481.9,4481.8,1.931]
[1758344274358,3.25898977,4481.9,4481.8,5.63]
[1758344275261,3.25898977,4481.9,4481.8,5.8796]
[1758344276086,3.25898978,4481.9,4481.8,5.8796]
[1758344278412,3.25898978,4481.9,4481.8,5.63]
[1758344283013,3.25898978,4481.9,4481.8,1.931]
[1758344283309,3.25898978,4481.9,4481.8,5.63]
[1758344292033,3.25898978,4481.9,4481.8,1.931]
[1758344292204,7.51228737,4481.9,4481.8,5.63]
[1758344292408,7.67318737,4481.9,4481.8,5.63]
[1758344292812,9.74348396,4481.9,4481.8,1.931]
[1758344293014,9.90438396,4481.9,4481.8,5.63]
[1758344296916,9.74348396,4481.9,4481.8,5.63]
[1758344306453,9.74348396,4481.9,4481.8,1.931]
[1758344306657,9.74348396,4481.9,4481.8,5.63]
[1758344307247,9.74348396,4481.9,4481.8,1.931]
[1758344307463,9.74348396,4481.9,4481.8,5.63]
[1758344307772,10.91743237,4481.9,4481.8,5.63]
[1758344308344,10.91727558,4481.9,4481.8,5.63]
[1758344310675,10.91727558,4481.9,4481.8,3.7]
[1758344310879,10.91727558,4481.9,4481.8,0.001]
[1758344311077,10.91727558,4481.9,4481.8,3.7]
[1758344315999,10.75637558,4481.9,4481.8,0.001]
[1758344316200,10.91727558,4481.9,4481.8,0.001]
[1758344317473,10.9168689,4481.9,4481.8,0.001]
[1758344321978,10.7559689,4481.9,4481.8,0.001]
[1758344337642,10.75618377,4481.9,4481.8,0.001]
[1758344339459,10.75618377,4481.9,4481.8,0.2425]
[1758344340733,5.48983777,4481.9,4481.8,0.2416]
[1758344348357,3.25864118,4481.9,4481.8,0.2416]
[1758344348562,5.48983777,4481.9,4481.8,0.2416]
[1758344349544,3.25864118,4481.9,4481.8,0.2416]
[1758344361559,5.48983777,4481.9,4481.8,0.2416]
[1758344363178,3.25864118,4481.9,4481.8,0.2416]
[1758344364992,5.48983777,4481.9,4481.8,0.2416]
[1758344367196,3.25864118,4481.9,4481.8,0.2416]
[1758344367397,3.25864118,4481.9,4481.8,3.9396]
[1758344367572,3.25864118,4481.9,4481.8,4.33366]
[1758344367897,3.04962474,4481.9,4481.8,4.33366]
[1758344368065,0.12762473,4481.9,4481.8,4.33366]
[1758344372964,7.38103073,4481.9,4481.8,0.001]
[1758344373169,7.38103073,4481.9,4481.8,3.699]
[1758344378702,7.38103073,4481.9,4481.8,0.001]
[1758344379000,7.38103073,4481.9,4481.8,3.699]
[1758344379206,7.59028181,4481.9,4481.8,3.699]
[1758344382842,0.33687581,4481.9,4481.8,3.9365]
[1758344383124,0.12762473,4481.9,4481.8,3.9365]
[1758344387393,0.12762473,4481.9,4481.8,4.74638274]
[1758344389193,0.12762473,4481.9,4481.8,3.9365]
[1758344389515,0.33690572,4481.9,4481.8,3.9365]
[1758344389687,0.12762473,4481.9,4481.8,3.9365]
[1758344401375,0.12762473,4481.9,4481.8,0.001]
[1758344401578,0.28852473,4481.9,4481.8,3.699]
[1758344401934,0.12762473,4481.9,4481.8,3.699]
[1758344403088,3.12762473,4481.9,4481.8,3.699]
[1758344403283,3.3369277,4481.9,4481.8,3.699]
[1758344403441,0.4978277,4481.9,4481.8,3.699]
[1758344403835,0.3369277,4481.9,4481.8,3.699]
[1758344412361,0.12762473,4481.9,4481.8,3.699]
[1758344413172,0.3369277,4481.9,4481.8,3.699]
[1758344413372,0.12762473,4481.9,4481.8,3.699]
[1758344418523,0.33692441,4481.9,4481.8,3.699]
[1758344421042,3.33692441,4481.9,4481.8,3.699]
[1758344421247,9.821527,4481.9,4481.8,3.699]
[1758344421454,9.982427,4481.9,4481.8,0.001]
[1758344421744,9.982427,4481.9,4481.8,3.699]
[1758344422112,9.982427,4481.9,4481.8,0.001]
[1758344422442,9.982427,4481.9,4481.8,3.699]
[1758344425322,9.821527,4481.9,4481.8,3.699]
[1758344426037,9.821527,4481.9,4481.8,0.001]
[1758344426237,9.821527,4481.9,4481.8,3.699]
[1758344428580,9.821527,4481.9,4481.8,0.001]
[1758344428742,9.821527,4481.9,4481.8,3.699]
[1758344429846,5.568121,4481.9,4481.8,3.699]
[1758344433745,5.568121,4481.9,4481.8,0.001]
[1758344434476,5.568121,4481.9,4481.8,3.699]
[1758344435148,5.568121,4481.9,4481.8,0.001]
[1758344435786,5.35882132,4481.9,4481.8,0.001]
[1758344435988,5.56801822,4481.9,4481.8,0.001]
[1758344436866,5.72891822,4481.9,4481.8,0.001]
[1758344438561,8.08091822,4481.9,4481.8,0.001]
[1758344438756,5.72891822,4481.9,4481.8,0.001]
[1758344443016,2.23129615,4481.7,4481.6,0.001]
[1758344443305,10.83180636,4481.7,4481.6,0.001]
[1758344443509,11.26487473,4481.7,4481.6,0.001]
[1758344451514,11.10397473,4481.7,4481.6,0.001]
[1758344452584,14.80397473,4481.7,4481.6,0.001]
[1758344453813,5.56611778,4481.7,4481.6,0.001]
[1758344454022,14.53180636,4481.7,4481.6,0.2268]
[1758344455650,5.56611778,4481.7,4481.6,0.2268]
[1758344460822,5.56611778,4481.7,4481.6,0.242]
[1758344467049,5.56611778,4481.7,4481.6,0.001]
[1758344472567,5.56611778,4481.7,4481.6,0.242]
[1758344473065,2.56611778,4481.7,4481.6,0.242]
[1758344473254,3.33482163,4481.7,4481.6,0.242]
[1758344477373,0.12562473,4481.7,4481.6,2.47334594]
[1758344477544,0.002,4481.8,4481.6,2.72301203]
[1758344477732,0.12541176,4481.7,4481.6,2.48201203]
[1758344477935,0.12541176,4481.7,4481.6,8.11101203]
[1758344478137,0.12741176,4481.8,4481.6,8.11101203]
[1758344478333,0.12741176,4481.8,4481.7,1.27484548]
[1758344478850,0.12741176,4481.8,4481.7,3.50614163]
[1758344479249,0.002,4481.8,4481.7,1.27484548]
[1758344479666,0.002,4481.8,4481.7,1.29715844]
[1758344482849,0.002,4481.8,4481.7,3.52845459]
[1758344487953,0.002,4481.8,4481.7,3.50614163]
[1758344490362,0.002,4481.8,4481.6,5.87966609]
[1758344490363,1.432,4481.8,4481.6,0.001]
[1758344490519,5.39219615,4481.7,4481.6,0.001]
[1758344490714,6.45100371,4481.7,4481.6,0.001]
[1758344491029,5.72566104,4481.7,4481.6,0.001]
[1758344491823,9.98099702,4481.7,4481.6,0.001]
[1758344492030,5.56476104,4481.7,4481.6,0.001]
[1758344492236,5.72566104,4481.7,4481.6,0.001]
[1758344492757,6.27518964,4481.7,4481.6,0.001]
[1758344495236,6.11428964,4481.7,4481.6,0.001]
[1758344497558,6.27518964,4481.7,4481.6,0.001]
[1758344498082,10.53052562,4481.7,4481.6,0.001]
[1758344501190,10.36962562,4481.7,4481.6,0.001]
[1758344503512,0.33346489,4481.7,4481.6,0.001]
[1758344503699,0.12503745,4481.7,4481.6,0.2264]
[1758344504023,0.002,4481.8,4481.6,0.2264]
[1758344504233,0.2426,4481.8,4481.6,0.2264]
[1758344504401,0.36763745,4481.8,4481.6,0.2264]
[1758344505002,0.2426,4481.8,4481.6,0.2264]
[1758344507729,0.2426,4481.8,4481.6,0.001]
[1758344507890,0.36763745,4481.8,4481.7,0.2254]
[1758344508222,0.2426,4481.8,4481.7,0.2254]
[1758344510838,0.002,4481.8,4481.7,0.2254]
[1758344516548,0.12703745,4481.8,4481.7,0.2254]
[1758344530159,0.12703745,4481.8,4481.7,3.9414]
[1758344531087,0.12703745,4481.8,4481.7,3.9609]
[1758344532393,0.12703745,4481.8,4481.7,3.716]
[1758344532394,0.12751204,4481.8,4481.7,3.716]
[1758344533084,0.33634656,4481.8,4481.7,3.716]
[1758344533986,0.12751204,4481.8,4481.7,3.716]
[1758344534982,0.33634656,4481.8,4481.7,3.716]
[1758344535183,0.33634656,4481.8,4481.7,3.955]
[1758344540063,0.12751204,4481.8,4481.7,3.955]
[1758344540264,0.12762933,4481.8,4481.7,3.716]
[1758344543915,0.12762933,4481.8,4481.7,3.955]
[1758344544408,0.1276333,4481.8,4481.7,3.955]
[1758344544796,0.1276333,4481.8,4481.7,3.951]
[1758344546511,0.1276333,4481.8,4481.7,3.712]
[1758344547125,0.33702215,4481.8,4481.7,3.712]
[1758344547294,0.33702215,4481.8,4481.7,3.951]
[1758344548342,0.33702215,4481.8,4481.7,6.9958659]
[1758344548504,0.12762153,4481.8,4481.7,6.9958659]
[1758344552638,0.12750702,4481.8,4481.7,6.9958659]
[1758344555680,0.12750702,4481.8,4481.7,4.52556975]
[1758344556954,0.12750702,4481.8,4481.7,4.76456975]
[1758344558157,0.12750702,4481.8,4481.7,6.7568659]
[1758344558367,0.12750702,4481.8,4481.7,6.9958659]
[1758344561741,0.12750702,4481.8,4481.7,6.7568659]
[1758344562459,0.12750702,4481.8,4481.7,6.9958659]
[1758344562975,5.5301736,4481.8,4481.3,0.001]
[1758344563186,5.23169452,4480.9,4480.6,0.001]
[1758344563495,5.87438365,4480.9,4480.6,0.001]
[1758344563674,6.35609298,4480.9,4480.6,0.001]
[1758344563986,2.23184394,4480.6,4480.3,0.008]
[1758344564294,5.23199339,4480.3,4480.1,3.422]
[1758344564463,5.87468252,4480.3,4480.1,3.422]
[1758344564666,6.03558252,4480.3,4480.1,3.422]
[1758344564855,6.15051593,4480.3,4480.1,3.422]
[1758344565194,6.15051593,4480.3,4480.1,0.01]
[1758344570162,5.98961593,4480.3,4480.1,0.01]
[1758344570491,5.84251218,4480.3,4480.1,0.01]
[1758344572232,2.23219268,4479.9,4477.9,0.001]
[1758344572530,10.49535764,4478.9,4477.9,0.001]
[1758344572678,12.26004302,4478.9,4477.9,0.001]
[1758344572881,12.42094302,4478.9,4477.9,0.001]
[1758344577295,12.42094302,4478.9,4477.9,0.2313]
[1758344577886,10.99094302,4478.9,4477.9,0.2313]
[1758344578718,14.73494302,4478.9,4477.9,0.2313]
[1758344579018,14.73494302,4478.9,4478.0,0.2313]
[1758344580622,14.73494302,4478.9,4478.1,0.2606]
[1758344581120,14.73494302,4478.9,4478.1,0.011]
[1758344581121,14.57204302,4478.9,4478.1,0.011]
[1758344581321,5.56737644,4478.9,4478.5,0.2496]
[1758344581620,5.56737644,4478.9,4478.1,0.011]
[1758344581827,5.56737644,4478.9,4478.5,0.2496]
[1758344585030,2.23306092,4478.2,4476.1,0.01]
[1758344585245,5.23343904,4477.4,4476.1,0.01]
[1758344585417,5.23353881,4477.2,4476.5,0.2496]
[1758344585617,0.33468538,4477.2,4476.6,0.02233838]
[1758344585941,2.23298351,4478.4,4476.6,0.02233838]
[1758344585942,2.23343603,4477.5,4476.6,0.26733838]
[1758344586156,2.23339694,4477.5,4476.6,0.26733838]
[1758344586442,2.23318966,4477.9,4477.1,0.2596]
[1758344586616,2.23344486,4477.4,4477.1,0.2596]
[1758344587019,2.23353341,4477.3,4477.1,0.2596]
[1758344587217,3.0,4477.8,4477.1,0.2596]
[1758344587539,0.33152643,4477.7,4477.1,0.2596]
[1758344587700,2.23353881,4477.2,4477.1,0.2596]
[1758344589206,2.35792836,4477.2,4477.1,0.2596]
[1758344591352,5.56582047,4477.2,4477.1,0.2596]
[1758344591550,5.56582047,4477.2,4477.1,0.01]
[1758344594622,5.56582047,4477.2,4477.1,0.258]
[1758344598664,2.23403779,4476.2,4476.1,0.01]
[1758344598822,2.234537,4475.2,4474.5,0.248]
[1758344599019,11.15966578,4475.2,4474.7,0.248]
[1758344599948,11.2729652,4475.2,4474.7,0.248]
[1758344600282,11.2729652,4475.2,4475.1,1e-08]
[1758344600283,15.0379652,4475.2,4475.1,1e-08]
[1758344600425,5.56681866,4475.2,4475.1,1e-08]
[1758344601470,3.33228166,4475.2,4475.1,0.24800001]
[1758344602363,5.56681866,4475.2,4475.1,0.24800001]
[1758344603302,5.56786529,4475.2,4475.1,0.24800001]
[1758344604829,3.33332829,4475.2,4475.1,0.24800001]
[1758344605029,5.56786529,4475.2,4475.1,0.24800001]
[1758344605332,3.33332829,4475.2,4475.1,0.24800001]
[1758344607043,3.12499811,4475.2,4475.1,0.24800001]
[1758344607258,3.33291816,4475.2,4475.1,0.24800001]
[1758344612264,0.33291816,4475.2,4475.1,0.24800001]
[1758344612491,0.12484431,4475.2,4475.1,0.27034587]
[1758344613847,0.12484431,4475.2,4475.1,0.24800001]
[1758344615263,0.12494669,4475.2,4475.1,1e-08]
[1758344616574,0.12494669,4475.2,4475.1,0.00100001]
[1758344618948,0.12494669,4475.2,4475.1,0.24900001]
[1758344622882,0.12494669,4475.2,4475.1,0.00100001]
[1758344628492,0.12494669,4475.2,4475.1,0.23510001]
[1758344632515,0.12494669,4475.2,4475.1,2.46968694]
[1758344633224,0.12494669,4475.2,4475.1,2.4920328]
[1758344633509,0.12494669,4475.2,4475.1,0.25744587]
[1758344633903,0.12494669,4475.2,4475.1,2.46968694]
[1758344634111,0.12494669,4475.2,4475.1,2.4920328]
[1758344635190,0.12694669,4475.2,4475.1,2.4920328]
[1758344637099,0.12694669,4475.2,4475.1,0.25744587]
[1758344638014,0.12694669,4475.2,4475.1,2.4920328]
[1758344639018,0.12694669,4475.2,4475.1,0.25744587]
[1758344639310,0.12694669,4475.2,4475.1,2.4920328]
[1758344639705,0.12694669,4475.2,4475.1,0.25744587]
[1758344640103,0.12694669,4475.2,4475.1,2.4920328]
[1758344642014,0.12694669,4475.2,4475.1,0.25744587]
[1758344642222,0.12694669,4475.2,4475.1,0.23510001]
[1758344642924,0.12694669,4475.2,4475.1,0.00100001]
[1758344648933,0.33661859,4475.2,4475.1,0.00100001]
[1758344656867,0.12694669,4475.2,4475.1,0.00100001]
[1758344657164,0.33661859,4475.2,4475.1,0.00100001]
[1758344657756,5.57115559,4475.2,4475.1,0.00100001]
[1758344658358,5.73205559,4475.2,4475.1,0.00100001]
[1758344660475,5.57115559,4475.2,4475.1,0.00100001]
[1758344660773,3.33661859,4475.2,4475.1,0.00100001]
[1758344660989,3.33661859,4475.2,4475.1,0.23850001]
[1758344661791,3.33661859,4475.2,4475.1,0.00100001]
[1758344661943,3.33661859,4475.2,4475.1,0.23850001]
[1758344662144,3.12694669,4475.2,4475.1,2.4954328]
[1758344662372,0.12694669,4475.2,4475.1,3.31095494]
[1758344667382,0.002,4475.2,4475.1,3.31095494]
[1758344683429,0.002,4475.2,4475.1,2.23558694]
[1758344683589,0.12759472,4475.2,4475.1,2.23558694]
[1758344683792,0.002,4475.2,4475.1,2.23558694]
[1758344684204,0.12759472,4475.2,4475.1,2.23558694]
[1758344684535,0.002,4475.2,4475.1,2.23558694]
[1758344685029,0.12759472,4475.2,4475.1,2.23558694]
[1758344685224,0.002,4475.2,4475.1,2.23558694]
[1758344685727,0.12760376,4475.2,4475.1,2.23558694]
[1758344685935,0.002,4475.2,4475.1,2.23558694]
[1758344686300,0.12760376,4475.2,4475.1,2.23558694]
[1758344690412,0.12760376,4475.2,4475.1,3.48621146]
[1758344690919,0.12760376,4475.2,4475.1,3.50855732]
[1758344692241,0.12760376,4475.2,4475.1,3.48621146]
[1758344692402,0.12760376,4475.2,4475.1,2.23558694]
[1758344696341,0.12760376,4475.2,4475.1,2.47098694]
[1758344702248,0.12760376,4475.2,4475.1,2.23558694]
[1758344706336,0.12760376,4475.2,4475.1,2.4993328]
[1758344708959,0.12760376,4475.2,4475.1,2.47698694]
[1758344712378,0.12760376,4475.2,4475.1,4.16758694]
[1758344714348,0.12760376,4475.2,4475.1,1.93300001]
[1758344714686,0.28850376,4475.2,4475.1,1.93300001]
[1758344714850,0.12760376,4475.2,4475.1,1.93300001]
[1758344715796,0.28850376,4475.2,4475.1,5.66500001]
[1758344716290,0.12760376,4475.2,4475.1,7.89958694]
[1758344718893,0.12760376,4475.2,4475.1,5.66500001]
[1758344719074,0.12760376,4475.2,4475.1,7.89958694]